Cogmind - Beta 13 @@@ ROGUE MODE // 2024.06.03 @ 15:10:31 Player: wojo Result: Destroyed by G-34 Mercenary with Small Laser Performance ------------- Evolutions (0) 0 Regions Visited (1) 200 Robots Destroyed (24) 120 Value Destroyed (788) 788 Prototype IDs (2) 40 Alien Tech Used (0) 0 Bonus (0) 0 TOTAL SCORE: 1148 Bonus ------- None Cogmind --------- Core Integrity 0/250 Matter 300/300 Energy 250/250 System Corruption 0% Temperature Cool (6) Movement Walking (120) Location -10/Materials Parts ------- > --- POWER (1) -------- Ion Engine > --- PROPULSION (2) --- Aluminum Leg Aluminum Leg > --- UTILITY (2) ------ Small Storage Unit > --- WEAPON (2) ------- Medium Laser Datajack > --- INVENTORY (8) ---- Ion Engine Light Nuclear Core Aluminum Leg Heat Sink Improved Heat Sink Improved Terrain Scanner Medium Laser Medium Laser Peak State ------------ > --- POWER ------------ Light Ion Engine > --- PROPULSION ------- Light Treads Aluminum Leg > --- UTILITY ---------- Small Storage Unit Improved Terrain Scanner > --- WEAPON ----------- Medium Laser Light Assault Rifle > --- INVENTORY -------- Ion Engine Ion Engine Light Nuclear Core Aluminum Leg Heat Sink Improved Heat Sink [Rating: 10] Favorites ----------- Power Ion Engine Engine Ion Engine Propulsion Aluminum Leg Treads Light Treads Leg Aluminum Leg Utility Small Storage Unit Device Improved Terrain Scanner Storage Small Storage Unit Hackware Hacking Suite Weapon Medium Laser Energy Gun Medium Laser Ballistic Gun Light Assault Rifle Special Melee Weapon Datajack Build | -11 -10 ------- Run | Yrd Mat Slots Evolved . | . . Power . | . . Propulsion . | . . Utility . | . . Weapon . | . . Parts Attached 19 | 7 12 Power 3 | 1 2 Engine 3 | 1 2 Core . | . . Reactor . | . . Propulsion 8 | 2 6 Treads 3 | 2 1 Leg 5 | . 5 Wheel . | . . Hover . | . . Flight . | . . Utility 3 | 2 1 Device 1 | 1 . Storage 1 | 1 . Processor . | . . Hackware 1 | . 1 Protection . | . . Artifact . | . . Weapon 5 | 2 3 Energy Gun 3 | 1 2 Energy Cannon . | . . Ballistic Gun 1 | 1 . Ballistic Cannon . | . . Launcher . | . . Special Weapon . | . . Impact Weapon . | . . Slashing Weapon . | . . Piercing Weapon . | . . Special Melee Weapon 1 | . 1 Unidentified Prototypes . | . . Parts Lost 6 | . 6 Power 1 | . 1 Propulsion 3 | . 3 Utility 1 | . 1 Weapon 1 | . 1 Highest Loss Streak 1 | . 1 To Critical Strikes . | . . Average Slot Usage (%) 97 | . 97 Engine 13 | . 13 Treads 5 | . 5 Leg 21 | . 21 Device 12 | . 12 Storage 14 | . 14 Hackware 1 | . 1 Energy Gun 22 | . 22 Ballistic Gun 4 | . 4 Special Melee Weapon 1 | . 1 Naked Turns . | . . Heaviest Build 15 | 12 15 Greatest Support 40 | 40 40 Greatest Overweight (x) 3 | 1 3 Average Overweight (x) . | . . Largest Inventory Capacity 8 | 8 8 Average Capacity 7 | 7 8 Most Carried 8 | 1 8 Average Carried 6 | . 7 Final Capacity 8 | 8 8 Final Carried 8 | 1 8 Class Distribution -------------------- 100% | Mutant Dominant Class ---------------- Mutant | -10/Materials Resources | -11 -10 ----------- Run | Yrd Mat Matter Collected 446 | 237 209 Remotely . | . . Salvage Created 904 | 13 891 Parts 44 | 5 39 Haulers Intercepted . | . . Recyclers Shooed . | . . Parts Field Recycled . | . . Retrieved Matter . | . . Parts Self-Destructed . | . . Prevented . | . . Kills | -11 -10 ------- Run | Yrd Mat Combat Hostiles Destroyed 19 | . 19 Guns 19 | . 19 Classes Destroyed 5 | 1 4 Tunneler 1 | 1 . Operator 2 | . 2 Watcher 2 | . 2 Grunt 18 | . 18 Subdweller 1 | . 1 Best Kill Streak 3 | 1 3 Combat Bots Only 3 | . 3 Max Kills in Single Turn 2 | 1 2 Gunslinging . | . . Exploded . | . . Melee . | . . Uniques/NPCs Destroyed . | . . Combat | -11 -10 -------- Run | Yrd Mat Hostile Shots Fired 137 | . 137 Missed 43 | . 43 Damage Taken 1189 | . 1189 Core 261 | . 261 Absorbed by Shields . | . . Regen/Repaired (Parts) 131 | . 131 Core Remaining (%) 100 | 100 . Volleys Fired 101 | 1 100 Largest 2 | 2 2 Hottest 100 | 70 100 Shots Fired 196 | 2 194 Gun 196 | 2 194 Cannon . | . . Launcher . | . . Special . | . . Kinetic 69 | 1 68 Thermal 127 | 1 126 Explosive . | . . Electromagnetic . | . . Robot Hit Streak 9 | 1 9 Robot Miss Streak 4 | . 4 Penetration Max . | . . Secondary Targets 3 | . 3 Max Gunslinging Chain 1 | . 1 Shots Hit Robots 125 | 1 124 Core Hits 52 | 1 51 Critical Kills 1 | . 1 Critical Parts Destroyed 2 | . 2 Critical Strikes 13 | . 13 Burn 10 | . 10 Destroy 3 | . 3 Melee Attacks 4 | . 4 Impact . | . . Slashing . | . . Piercing . | . . Sneak Attacks 4 | . 4 Combat Hostiles . | . . Follow-up Attacks . | . . Damage Inflicted 1379 | 13 1366 Guns 1379 | 13 1366 Cannons . | . . Explosions . | . . Melee . | . . Ramming . | . . Kinetic 377 | . 377 Thermal 1002 | 13 989 Explosive . | . . Electromagnetic . | . . Impact . | . . Slashing . | . . Piercing . | . . Highest Corruption . | . . Average Corruption . | . . Corruption Purged . | . . Corruption Blocked . | . . Overload Shots . | . . Overflow Damage . | . . Projectiles . | . . Explosions . | . . Melee . | . . Knockbacks . | . . Impact . | . . Kinetic . | . . Secondary . | . . Self-Inflicted Damage . | . . Shots . | . . Rammed . | . . Targets Rammed . | . . Kicked . | . . Crushed . | . . Highest Temperature 378 | 30 378 Average Temperature 88 | 18 89 Received Heat Transfer 672 | . 672 Effects 5 | . 5 Shutdowns 1 | . 1 Energy Bleed 1 | . 1 Interference 3 | . 3 Siege Activations . | . . Robots Corrupted . | . . Combat Hostiles . | . . Parts Fried . | . . Impact Corruptions . | . . Robots Melted . | . . Combat Hostiles . | . . Parts Melted 8 | . 8 Heat Transferred 3630 | 37 3593 Parts Sabotaged . | . . Parts Stolen . | . . Parts Stripped . | . . Power Chain Reactions . | . . Alert | -11 -10 ------- Run | Yrd Mat Peak Influence 272 | 5 272 Initial 3 | . 3 Average 104 | 3 111 Maximum Alert Level 1 | . 1 Low Security (%) 84 | 100 83 Level 1 15 | . 16 Level 2 . | . . Level 3 . | . . Level 4 . | . . Level 5 . | . . High Security . | . . Max Security . | . . Squads Dispatched 5 | . 5 Investigation 2 | . 2 Extermination . | . . Reinforcement 3 | . 3 Assault . | . . Garrison . | . . Intercept . | . . Searches Triggered . | . . Construction Impeded . | . . Haulers Reinforced . | . . Active Scanning Responses . | . . Cargo Convoy Interrupts . | . . Stealth | -11 -10 --------- Run | Yrd Mat Distress Signals 2 | . 2 Communications Jammed . | . . Distress Signals . | . . Times Spotted 39 | . 39 Peak Tracking Total 3 | . 3 Tactical Retreats . | . . Traps | -11 -10 ------- Run | Yrd Mat Traps Triggered 1 | . 1 Indirectly . | . . Trap Hack Attempts . | . . Triggered . | . . Disarmed . | . . Reprogrammed . | . . Reused . | . . Traps Extracted . | . . Installed . | . . Triggered . | . . Machines | -11 -10 ---------- Run | Yrd Mat Machines Disabled . | . . Max in Single Turn . | . . Machines Repaired . | . . Machines Dismantled . | . . Machines Sabotaged . | . . Overloaded Fab Kills . | . . Hacking | -11 -10 --------- Run | Yrd Mat Machines Accessed 3 | . 3 Terminals 2 | . 2 Fabricators . | . . Repair Stations 1 | . 1 Recycling Units . | . . Scanalyzers . | . . Garrison Access . | . . Total Hacks 11 | . 11 Successful 8 | . 8 Failed 3 | . 3 Catastrophic . | . . Database Lockouts . | . . Manual . | . . Terminals 7 | . 7 Fabricators . | . . Repair Stations 4 | . 4 Recycling Units . | . . Scanalyzers . | . . Garrison Access . | . . Terminal Hacks 4 | . 4 Prototype ID Bank 1 | . 1 Locate Traps 1 | . 1 Hauler Manifests 1 | . 1 Registered Components 1 | . 1 Fabricator Hacks . | . . Repair Station Hacks 4 | . 4 Scan Component 2 | . 2 Repair 2 | . 2 Recycling Unit Hacks . | . . Scanalyzer . | . . Garrison Access Hacks . | . . Unauthorized Hacks . | . . Terminals . | . . Fabricators . | . . Repair Stations . | . . Recycling Units . | . . Scanalyzers . | . . Garrison Access . | . . Data Cores Recovered . | . . Used . | . . Hacking Detections 3 | . 3 Full Trace Events 1 | . 1 Feedback Events . | . . Feedback Blocked . | . . Robot Schematics Acquired . | . . Robots Built . | . . Authchips . | . . Time . | . . Total Robot Build Rating . | . . Part Schematics Acquired . | . . Parts Built . | . . Authchips . | . . Time . | . . Total Part Build Rating . | . . Parts Repaired 2 | . 2 Time 52 | . 52 Parts Recycled . | . . Recycled Matter . | . . Retrieved Matter . | . . Retrieved Components . | . . Parts Scanalyzed . | . . Part Schematics Acquired . | . . Parts Damaged . | . . Bothacking | -11 -10 ------------ Run | Yrd Mat Used RIF Installer . | . . Robots Hacked . | . . Non-combat . | . . Combat . | . . Robot Hacks Applied . | . . Relay Couplers Released . | . . Fabnet Peak Effective % . | . . Robots Rewired . | . . Allies Hacked . | . . Hacks Repelled . | . . Allies | -11 -10 -------- Run | Yrd Mat Total Allies . | . . Largest Group . | . . Highest-Rated Group . | . . Highest-Rated Ally . | . . Total Orders . | . . Ally Attacks . | . . Total Damage . | . . Kills . | . . Allies Corrupted . | . . Allies Melted . | . . Intel | -11 -10 ------- Run | Yrd Mat Robot Analysis Total . | . . Derelict Logs Recovered . | . . Drone Launches . | . . Drone Recoveries . | . . Exploration | -11 -10 ------------- Run | Yrd Mat Turns Passed 1623 | 94 1529 Spaces Moved 975 | 56 919 Core 13 | 12 1 Treads 167 | 44 123 Legs 795 | . 795 Wheels . | . . Hover . | . . Flight . | . . Fastest Speed 50 | 50 120 Average Speed 127 | 142 126 Slowest Speed 200 | 160 200 Overloaded Moves . | . . Propulsion Burnouts . | . . Robots Hopped . | . . Cave-ins Triggered . | . . Exploration Rate (%) 42 | 4 81 Regions Visited 1 Branch Regions . Pre-discovered Areas . | . . Known Exits Taken . | . . Unknown Exits Taken 1 | 1 . Scrap Searched . | . . Spaces Dug . | . . Terrain Destroyed . | . . Melee . | . . Projectile . | . . AOE . | . . Terrain Rammed . | . . Walls Destroyed . | . . Machines Disabled . | . . Actions | -11 -10 --------- Run | Yrd Mat Total 1171 | 65 1106 Wait 55 | . 55 Move 974 | 55 919 Hop . | . . Pick Up 13 | 2 11 Fast Attach 11 | 6 5 Attach 4 | 1 3 Detach 2 | . 2 Swap 4 | . 4 Drop 3 | . 3 Fire 101 | 1 100 Melee 4 | . 4 Ram . | . . Kick . | . . Crush . | . . Escape Stasis . | . . Rewire . | . . Trap . | . . Miscellaneous . | . . Route ------- -11/Scrapyard -10/Materials (discovered 5 exits: [*Mat x3] / [*Min] / [Sub]) History --------- Turn | Location | Event 15 | -11/Scrapyard | Discovered new exit (range 15) 95 | -11/Scrapyard | Entered Materials 305 | -10/Materials | Build established: Mutant 446 | -10/Materials | Core integrity fell below 50% 478 | -10/Materials | Discovered new exit (range 11) 500 | -10/Materials | Discovered new exit (range 12) 595 | -10/Materials | Derelicts attacked the area 656 | -10/Materials | Discovered new exit (range 4) 760 | -10/Materials | Core integrity fell below 20% 941 | -10/Materials | Discovered new exit (range 11) 1561 | -10/Materials | Repaired Aluminum Leg 1590 | -10/Materials | Repaired Ion Engine 1608 | -10/Materials | Discovered new exit (range 16) 1624 | -10/Materials | Destroyed by G-34 Mercenary with Small Laser Last Messages --------------- 01564_ Connecting with Repair Station... >>Scan(Ion Engine) Scanning Ion Engine... Ready to Repair: Ion Engine Rating: 1 Time: 26 >>Repair Repairing Ion Engine... ETC: 26 01590_ Repair station completes Ion Engine repairs. 01590_ Acquired Ion Engine. 01604_ Acquired 20 matter. 01608_ EXIT=FOUND 01614_ Triggered Alarm Trap. 01614_ An alarm sounds. 01614_ ALERT: Alarm triggered, dispatching investigation squad. 01614_ Hacking Suite destroyed. Map ----- +----------------------------------------------------+ | #?? ?????????#???????????? | | #######" "## ###?????"????????????????? | | #???#?#" |"! "## ###??"? ?????????????????? | | #??#?##"""""""##% %% #??????????????????????? | | ################ +? ????????????????????? | | # #?###"=== #??????????????????????? | | # ###?#T =% #? ? ??????????????????? | | # #???# #? ????? ??????????????? | | +% % ###### #?#?#??????????????????? | | # + #??????????????????????? | | # ###### % #?#???#????????????????? | | # #????### ####??#???????????????????? | | # #???#?##% #????#?#??????????????????? | | ###########??????# % #??????#??#???????????????? | | ???##???#??????#?#% #######???????????????????? | | #?#??#?#????#????# ## ##??????????????????? | | ?????#??????#?#??# ## #?????#?????????????? | | ?????????????#??## ## #???????????????????? | | ???#????##????#??# ## #???????????????????? | | ##????#????#?????# ## ## ?? ??????????????? | | ?#??#?????????#??# %## #???????????????????? | | ??#?????#????????# ## ! #???????????????????? | | ?????#?????##???## ## #???????????????????? | | ????????#???????## ## #?? ????????????????? | | ????????????????# ###/######+#######???????? | | ????????????????# @ g #???? | | ????????????????# % a g < #???? | | ????????????????# % g #???? | | ????????????????# #################+####???? | | ??????#??????######+######?????????????????????? | | ?????????????# [#?????????????????????? | | ????????????## #?#???????????????????? | | ?????????#???# #?????????????????????? | | ?????????????# """ " " #?????????????????????? | | ?????????????# """ "R" #?????????????????????? | | ?????????????# """ """ #?????????????????????? | | ?????????????# #??#??????????????????? | | ?????????????#############?????????????????????? | | | | | | | | | | | | | | | | | | | | | | | | | +----------------------------------------------------+ Best States ------------- Heat Dissipation 25 Energy Generation 10 Energy Capacity 250 Matter Stores 300 Matter Capacity 300 Sight Range 16 Terrain Scan Range 16 Terrain Scan Density 10 Evasion (%) 55 Recoil Reduction 2 Offensive Hacking 10 Item Schematics ----------------- None Robot Schematics ------------------ None Fabricated ------------ Nothing Alien Tech Used ----------------- None Achievements -------------- None Challenges ------------ None Game ------ Seed AlloyExplosiveDatajack Manual? 0 Play Time 00:15:50 Cumulative 20.7 hours Start 2024.06.03 @ 14:53:48 End 2024.06.03 @ 15:10:31 Sessions 1 Manual Loads 0 Difficulty Rogue Special Mode None Game No. 35 Rogue 35 Adventurer 0 Explorer 0 Win Type - Total 0 Types 0/0/0/0/0/0/0/0/0 Lore% 12 Gallery% 25 Achievement% 17 Wizard Run 0 Options --------- Layout 1 ASCII 0 Keyboard 0 Movement Arrows Keybinds 0 Fullscreen 1 Font 16/Terminus Map View 50x40 Zoom Use 0% Tactical HUD 1 Map Filters NONE Filters NONE Steam SD RUN: 5230f89d-8e85-4ccd-98d9-fd5de92f6036